Cogmind - Beta 14 @@@ ROGUE MODE // 2024.08.30 @ 17:46:40 Player: star Result: Self-destructed Performance ------------- Evolutions (2) 1000 Regions Visited (5) 1000 Robots Destroyed (56) 280 Value Destroyed (1424) 1424 Prototype IDs (26) 520 Alien Tech Used (0) 0 Bonus (472) 472 TOTAL SCORE: 4696 Bonus ------- High Alert Combat Kills 46 Follower Combat Kills 126 Aligned with FarCom 300 Cogmind --------- Core Integrity 84/550 Matter 282/300 Energy 100/100 System Corruption 14% Temperature Cool (0) Movement Rolling (85) Location -8/Materials Parts ------- > --- POWER (1) -------- (None) > --- PROPULSION (5) --- Wheel Armored Wheel Improved VTOL Module Improved VTOL Module > --- UTILITY (3) ------ Improved Heat Sink Large Storage Unit Visual Processing Unit > --- WEAPON (2) ------- (None) > --- INVENTORY (15) --- Light Nuclear Core Advanced Heat Sink High-capacity Matter Pod (200) Targeting Computer Cloak of Protection Hacking Suite System Shield EM Pulse Cannon Peak State ------------ > --- POWER ------------ Light Nuclear Core > --- PROPULSION ------- Aluminum Leg Aluminum Leg > --- UTILITY ---------- Improved Heat Sink Large Storage Unit Cloak of Protection > --- WEAPON ----------- Beamcaster Heavy Assault Rifle > --- INVENTORY -------- High-capacity Matter Pod Targeting Computer Hacking Suite Light Assault Rifle Rocket Launcher Mini Grenade Launcher [Rating: 25] Favorites ----------- Power Light Nuclear Core Engine Ion Engine Power Core Light Nuclear Core Propulsion Aluminum Leg Leg Aluminum Leg Wheel Compact Wheel Hover Unit Combat Airjet Flight Unit Improved VTOL Module Utility Improved Heat Sink Device Improved Heat Sink Storage Large Storage Unit Processor Targeting Computer Protection Weapon Shielding Weapon Light Assault Rifle Energy Gun Beamcaster Energy Cannon EM Pulse Cannon Ballistic Gun Light Assault Rifle Ballistic Cannon Light Cannon Launcher Mini Grenade Launcher Build | -11 -10 -10 -10 -9 -8 ------- Run | Yrd Mat Min Exi Min Mat Slots Evolved 4 | . . . . . 4 Power . | . . . . . . Propulsion 3 | . . . . . 3 Utility 1 | . . . . . 1 Weapon . | . . . . . . Parts Attached 54 | 5 4 10 1 . 34 Power 8 | 1 . 3 . . 4 Engine 6 | 1 . 2 . . 3 Core 2 | . . 1 . . 1 Reactor . | . . . . . . Propulsion 17 | 2 1 3 . . 11 Treads . | . . . . . . Leg 4 | . . 2 . . 2 Wheel 8 | 2 1 . . . 5 Hover 1 | . . 1 . . . Flight 4 | . . . . . 4 Utility 7 | . 2 2 1 . 2 Device 2 | . . 1 1 . . Storage 1 | . . . . . 1 Processor 2 | . 1 . . . 1 Hackware . | . . . . . . Protection 2 | . 1 1 . . . Artifact . | . . . . . . Weapon 22 | 2 1 2 . . 17 Energy Gun 6 | 1 . 1 . . 4 Energy Cannon 1 | . . . . . 1 Ballistic Gun 8 | 1 . 1 . . 6 Ballistic Cannon 1 | . 1 . . . . Launcher 6 | . . . . . 6 Special Weapon . | . . . . . . Impact Weapon . | . . . . . . Slashing Weapon . | . . . . . . Piercing Weapon . | . . . . . . Special Melee Weapon . | . . . . . . Unidentified Prototypes 1 | . . . . . 1 Corrupted Parts 1 | . . . . . 1 System Corruption 9 | . . . . . 9 Parts Lost 22 | . 2 5 . . 15 Power 5 | . 1 1 . . 3 Propulsion 8 | . . 1 . . 7 Utility 2 | . . 2 . . . Weapon 7 | . 1 1 . . 5 Highest Loss Streak 4 | . 2 4 . . 3 To Critical Strikes . | . . . . . . Average Slot Usage (%) 75 | . 86 83 78 85 60 Engine 2 | . 8 2 . . 1 Core 3 | . . 2 14 14 2 Leg 9 | . . 4 28 28 11 Wheel 12 | . 28 18 . . 2 Hover 1 | . . 5 . . . Flight 2 | . . . . . 7 Device 8 | . . 7 21 28 10 Storage 3 | . . . . . 8 Processor 4 | . 10 6 . . . Protection 5 | . 10 13 . . . Energy Gun 5 | . 7 4 . . 6 Ballistic Gun 11 | . 14 11 14 14 8 Ballistic Cannon 3 | . 6 6 . . . Peak Build Rating 25 | 5 7 18 17 17 25 Average Rating 12 | 3 6 10 13 17 17 On Entrance 9 | . 5 6 13 17 17 Naked Turns . | . . . . . . Heaviest Build 42 | 8 9 14 15 15 42 Greatest Support 35 | 32 32 26 20 20 35 Greatest Overweight (x) 11 | . . 1 1 . 11 Average Overweight (x) . | . . . . . 1 Largest Inventory Capacity 15 | 5 5 5 5 5 15 Average Capacity 8 | 5 5 5 5 5 14 Most Carried 10 | . 5 5 5 5 10 Average Carried 5 | . 3 4 5 5 7 Final Capacity 15 | 5 5 5 5 5 15 Final Carried 8 | . 4 5 5 5 8 Class Distribution -------------------- 53% | Mutant 46% | Scavenger-Mutant Dominant Class ---------------- Mutant | -10/Materials Mutant | -10/Mines Scavenger-Mutant | -10/Exiles Scavenger-Mutant | -9/Mines Scavenger-Mutant | -8/Materials Resources | -11 -10 -10 -10 -9 -8 ----------- Run | Yrd Mat Min Exi Min Mat Matter Collected 1320 | 220 299 202 . 33 566 Remotely . | . . . . . . Salvage Created 1752 | . 310 114 . . 1328 Parts 98 | . 19 7 . . 72 Haulers Intercepted 5 | . 2 . . . 3 Recyclers Shooed 2 | . . . . . 2 Parts Field Recycled . | . . . . . . Retrieved Matter . | . . . . . . Parts Self-Destructed . | . . . . . . Prevented . | . . . . . . Kills | -11 -10 -10 -10 -9 -8 ------- Run | Yrd Mat Min Exi Min Mat Combat Hostiles Destroyed 42 | . 7 9 . . 26 Guns 27 | . 4 7 . . 16 Cannons 5 | . 3 2 . . . AOE 10 | . . . . . 10 Classes Destroyed 13 | . 4 1 . . 8 Worker 3 | . . . . . 3 Builder 4 | . . . . . 4 Hauler 5 | . 2 . . . 3 Recycler 2 | . . . . . 2 Mechanic 1 | . . . . . 1 Operator 2 | . 1 . . . 1 Watcher 1 | . . . . . 1 Swarmer 15 | . 3 5 . . 7 Grunt 18 | . 4 . . . 14 Brawler 2 | . . . . . 2 Duelist 2 | . . . . . 2 Sentry 1 | . . . . . 1 Assembled 4 | . . 4 . . . Best Kill Streak 13 | . 3 2 . . 13 Combat Bots Only 6 | . 3 2 . . 6 Max Kills in Single Turn 4 | . 1 1 . . 4 Gunslinging . | . . . . . . Exploded 2 | . . . . . 2 Melee . | . . . . . . Uniques/NPCs Destroyed . | . . . . . . Combat | -11 -10 -10 -10 -9 -8 -------- Run | Yrd Mat Min Exi Min Mat Hostile Shots Fired 210 | . 44 26 . . 140 Missed 52 | . 8 5 . . 39 Damage Taken 2754 | . 403 429 . . 1922 Core 684 | . 106 112 . . 466 Absorbed by Shields . | . . . . . . Redirected to Shielding 50 | . 42 8 . . . Core Remaining (%) 56 | 100 . . . 12 . Volleys Fired 150 | . 35 27 . . 88 Largest 2 | . 2 2 . . 2 Hottest 105 | . 60 60 . . 105 Shots Fired 279 | . 69 48 . 1 161 Gun 240 | . 55 41 . 1 143 Cannon 25 | . 14 7 . . 4 Launcher 14 | . . . . . 14 Special . | . . . . . . Kinetic 167 | . 49 35 . 1 82 Thermal 74 | . . 13 . . 61 Explosive 14 | . . . . . 14 Electromagnetic 24 | . 20 . . . 4 Robot Hit Streak 10 | . 9 4 . 5 10 Robot Miss Streak 5 | . 2 5 . . 3 Penetration Max . | . . . . . . Secondary Targets . | . . . . . . Shots Hit Robots 171 | . 47 26 . 1 97 Core Hits 110 | . 17 17 . . 76 Critical Kills . | . . . . . . Critical Parts Destroyed . | . . . . . . Critical Strikes 7 | . . 1 . . 6 Burn 6 | . . . . . 6 Blast 1 | . . 1 . . . Melee Attacks . | . . . . . . Impact . | . . . . . . Slashing . | . . . . . . Piercing . | . . . . . . Sneak Attacks . | . . . . . . Combat Hostiles . | . . . . . . Follow-up Attacks . | . . . . . . Damage Inflicted 4039 | . 558 283 . 7 3191 Guns 1984 | . 333 211 . 7 1433 Cannons 405 | . 225 72 . . 108 Explosions 1649 | . . . . . 1649 Melee . | . . . . . . Ramming 1 | . . . . . 1 Kinetic 1199 | . 369 205 . 7 618 Thermal 893 | . . 78 . . 815 Explosive 1604 | . . . . . 1604 Electromagnetic 342 | . 189 . . . 153 Impact . | . . . . . . Slashing . | . . . . . . Piercing . | . . . . . . Highest Corruption 14 | . . 7 7 7 14 Average Corruption 7 | . . 6 7 7 8 Corruption Purged . | . . . . . . Corruption Blocked . | . . . . . . Effects 39 | . . 20 9 6 4 Message Errors 12 | . . 5 3 1 3 Matter Fused 10 | . . 6 3 . 1 Heat Flow Errors 5 | . . 3 1 1 . Energy Discharges 6 | . . 4 . 2 . Data Loss (minor) 3 | . . 1 1 1 . Data Loss (major) 1 | . . . 1 . . Misfires 2 | . . 1 . 1 . Overload Shots . | . . . . . . Overflow Damage 65 | . 6 . . . 59 Projectiles 6 | . 6 . . . . Explosions 59 | . . . . . 59 Melee . | . . . . . . Knockbacks 4 | . 3 1 . . . Impact . | . . . . . . Kinetic 4 | . 3 1 . . . Secondary . | . . . . . . Self-Inflicted Damage 368 | . . . . . 368 Shots 10 | . . . . . 10 Rammed 1 | . . . . . 1 Targets Rammed 1 | . . . . . 1 Kicked . | . . . . . . Crushed . | . . . . . . Highest Temperature 171 | . 58 168 171 150 116 Average Temperature 30 | . 20 38 93 88 29 Received Heat Transfer 972 | . 165 69 . . 738 Siege Activations . | . . . . . . Robots Corrupted . | . . . . . . Combat Hostiles . | . . . . . . Parts Fried 1 | . 1 . . . . Impact Corruptions . | . . . . . . Robots Melted . | . . . . . . Combat Hostiles . | . . . . . . Parts Melted 3 | . . . . . 3 Heat Transferred 2099 | . . 175 . . 1924 Parts Sabotaged . | . . . . . . Parts Stolen . | . . . . . . Parts Stripped . | . . . . . . Power Chain Reactions . | . . . . . . Alert | -11 -10 -10 -10 -9 -8 ------- Run | Yrd Mat Min Exi Min Mat Peak Influence 706 | . 296 232 . . 706 Initial 56 | . . 56 . . . Average 192 | . 174 62 . . 325 Maximum Alert Level 3 | . 1 1 . . 3 Low Security (%) 49 | 100 56 84 . 100 12 Level 1 40 | . 43 15 . . 61 Level 2 10 | . . . . . 26 Level 3 . | . . . . . . Level 4 . | . . . . . . Level 5 . | . . . . . . High Security . | . . . . . . Max Security . | . . . . . . Squads Dispatched 9 | . 2 . . . 7 Investigation 1 | . 1 . . . . Extermination . | . . . . . . Reinforcement 3 | . 1 . . . 2 Assault 1 | . . . . . 1 Garrison 4 | . . . . . 4 Intercept . | . . . . . . Searches Triggered . | . . . . . . Construction Impeded 1 | . . . . . 1 Haulers Reinforced . | . . . . . . Active Scanning Responses . | . . . . . . Cargo Convoy Interrupts . | . . . . . . Stealth | -11 -10 -10 -10 -9 -8 --------- Run | Yrd Mat Min Exi Min Mat Distress Signals 10 | . 1 1 . . 8 Communications Jammed . | . . . . . . Distress Signals . | . . . . . . Times Spotted 101 | . 26 16 . . 59 Peak Tracking Total 7 | . 5 3 . . 7 Tactical Retreats 13 | . 5 2 . . 6 Traps | -11 -10 -10 -10 -9 -8 ------- Run | Yrd Mat Min Exi Min Mat Traps Triggered 2 | . 1 . . . 1 Indirectly . | . . . . . . Trap Hack Attempts . | . . . . . . Triggered . | . . . . . . Disarmed . | . . . . . . Reprogrammed . | . . . . . . Reused . | . . . . . . Traps Extracted . | . . . . . . Installed . | . . . . . . Triggered . | . . . . . . Machines | -11 -10 -10 -10 -9 -8 ---------- Run | Yrd Mat Min Exi Min Mat Machines Disabled 2 | . . . . . 2 Max in Single Turn 2 | . . . . . 2 Garrison Access 1 | . . . . . 1 Machines Repaired . | . . . . . . Machines Dismantled . | . . . . . . Machines Sabotaged . | . . . . . . Overloaded Fab Kills . | . . . . . . Hacking | -11 -10 -10 -10 -9 -8 --------- Run | Yrd Mat Min Exi Min Mat Machines Accessed 10 | . 8 . 2 . . Terminals 8 | . 8 . . . . Fabricators . | . . . . . . Repair Stations . | . . . . . . Recycling Units . | . . . . . . Scanalyzers . | . . . . . . Garrison Access . | . . . . . . Total Hacks 48 | . 24 . 24 . . Successful 37 | . 13 . 24 . . Failed 11 | . 11 . . . . Catastrophic . | . . . . . . Database Lockouts . | . . . . . . Manual 23 | . 22 . 1 . . Terminals 24 | . 24 . . . . Fabricators . | . . . . . . Repair Stations . | . . . . . . Recycling Units . | . . . . . . Scanalyzers . | . . . . . . Garrison Access . | . . . . . . Terminal Hacks 25 | . 1 . 24 . . Record 23 | . . . 23 . . Prototype ID Bank 1 | . 1 . . . . Derelict Proto ID Bank 1 | . . . 1 . . Fabricator Hacks . | . . . . . . Repair Station Hacks . | . . . . . . Recycling Unit Hacks . | . . . . . . Scanalyzer . | . . . . . . Garrison Access Hacks . | . . . . . . Unauthorized Hacks 12 | . 12 . . . . Terminals 12 | . 12 . . . . Botnet 6 | . 6 . . . . Skim 6 | . 6 . . . . Fabricators . | . . . . . . Repair Stations . | . . . . . . Recycling Units . | . . . . . . Scanalyzers . | . . . . . . Garrison Access . | . . . . . . Data Cores Recovered 1 | . 1 . . . . Used . | . . . . . . Hacking Detections 6 | . 6 . . . . Full Trace Events . | . . . . . . Feedback Events . | . . . . . . Feedback Blocked . | . . . . . . Robot Schematics Acquired . | . . . . . . Robots Built . | . . . . . . Authchips . | . . . . . . Time . | . . . . . . Total Robot Build Rating . | . . . . . . Part Schematics Acquired . | . . . . . . Parts Built . | . . . . . . Authchips . | . . . . . . Time . | . . . . . . Total Part Build Rating . | . . . . . . Parts Repaired . | . . . . . . Time . | . . . . . . Parts Recycled . | . . . . . . Recycled Matter . | . . . . . . Retrieved Matter . | . . . . . . Retrieved Components . | . . . . . . Parts Scanalyzed . | . . . . . . Part Schematics Acquired . | . . . . . . Parts Damaged . | . . . . . . Bothacking | -11 -10 -10 -10 -9 -8 ------------ Run | Yrd Mat Min Exi Min Mat Used RIF Installer . | . . . . . . Robots Hacked . | . . . . . . Non-combat . | . . . . . . Combat . | . . . . . . Robot Hacks Applied . | . . . . . . Relay Couplers Released 1 | . . . . . 1 Machine Destruction 1 | . . . . . 1 Fabnet Peak Effective % . | . . . . . . Robots Rewired . | . . . . . . Allies Hacked . | . . . . . . Hacks Repelled . | . . . . . . Allies | -11 -10 -10 -10 -9 -8 -------- Run | Yrd Mat Min Exi Min Mat Total Allies 5 | . . 4 . 1 . Largest Group 3 | . . 3 . 1 1 Highest-Rated Group 55 | . . 55 . 31 31 Highest-Rated Ally 31 | . . 31 . 31 31 Total Orders . | . . . . . . Ally Attacks 35 | . . 26 . . 9 Total Damage 416 | . . 269 . . 147 Kills 6 | . . 4 . . 2 Allies Corrupted . | . . . . . . Allies Melted . | . . . . . . Intel | -11 -10 -10 -10 -9 -8 ------- Run | Yrd Mat Min Exi Min Mat Robot Analysis Total . | . . . . . . Derelict Logs Recovered 2 | . . 2 . . . Drone Launches . | . . . . . . Drone Recoveries . | . . . . . . Exploration | -11 -10 -10 -10 -9 -8 ------------- Run | Yrd Mat Min Exi Min Mat Turns Passed 3981 | 38 864 1059 326 197 1497 Spaces Moved 2591 | 31 722 883 232 163 560 Core 71 | 1 . . . . 70 Treads . | . . . . . . Legs 718 | . . 45 232 163 278 Wheels 1426 | 30 722 481 . . 193 Hover 357 | . . 357 . . . Flight 19 | . . . . . 19 Fastest Speed 50 | 50 90 80 120 120 85 Average Speed 121 | 98 93 93 139 120 193 Slowest Speed 600 | 100 100 190 190 120 600 Overloaded Moves . | . . . . . . Propulsion Burnouts . | . . . . . . Robots Hopped . | . . . . . . Cave-ins Triggered . | . . . . . . Exploration Rate (%) 57 | 3 88 98 61 59 38 Regions Visited 5 Branch Regions 3 Pre-discovered Areas 6 | . 2 3 1 . . Known Exits Taken . | . . . . . . Unknown Exits Taken 5 | 1 1 1 1 1 . Scrap Searched 1 | . . 1 . . . Spaces Dug 11 | . . . . . 11 Terrain Destroyed 117 | . . . . . 117 Melee . | . . . . . . Projectile . | . . . . . . AOE 117 | . . . . . 117 Terrain Rammed . | . . . . . . Walls Destroyed . | . . . . . . Machines Disabled . | . . . . . . Actions | -11 -10 -10 -10 -9 -8 --------- Run | Yrd Mat Min Exi Min Mat Total 3157 | 35 849 1068 234 166 805 Wait 342 | . 79 145 . . 118 Move 2586 | 30 721 882 231 162 560 Hop . | . . . . . . Pick Up 14 | . 7 2 . 2 3 Fast Attach 33 | 5 2 7 1 . 18 Attach 4 | . 1 . . . 3 Detach 1 | . . . . . 1 Swap 17 | . 1 3 . . 13 Drop 9 | . 3 2 2 2 . Fire 150 | . 35 27 . . 88 Melee . | . . . . . . Ram 1 | . . . . . 1 Kick . | . . . . . . Crush . | . . . . . . Escape Stasis . | . . . . . . Rewire . | . . . . . . Trap . | . . . . . . Miscellaneous . | . . . . . . Route ------- -11/Scrapyard -10/Materials (discovered 6 exits: *Mat x3 / [*Min x2] / Sub) -10/Mines (discovered 3 exits: *Mat x2 / *Exi) -10/Exiles -9/Mines -8/Materials History --------- Turn | Location | Event 23 | -11/Scrapyard | Discovered new exit (range 15) 39 | -11/Scrapyard | Entered Materials 270 | -10/Materials | Discovered new exit (range 15) 315 | -10/Materials | Build established: Mutant 370 | -10/Materials | Discovered new exit (range 12) 425 | -10/Materials | Discovered new exit (range 12) 450 | -10/Materials | Discovered new exit (range 9) 513 | -10/Materials | Learned Storage interactive machine intel 571 | -10/Materials | Learned location of 1 exit from Storage 595 | -10/Materials | Discovered new exit (range 16) 620 | -10/Materials | Identified exit to Subcaves 659 | -10/Materials | Learned location of Storage (-9) 689 | -10/Materials | Learned Storage security intel 709 | -10/Materials | Learned location of Recycling (-9) 742 | -10/Materials | Learned Storage interactive machine intel 775 | -10/Materials | Learned location of 1 exit from Recycling 818 | -10/Materials | Identified exit to Materials 903 | -10/Materials | Entered Mines 928 | -10/Mines | Found a hidden stash of uninstalled traps 1066 | -10/Mines | Assisted by bots powering up and referring to "LRC-V3" 1137 | -10/Mines | Escorted by a lone wolf Derelict 1256 | -10/Mines | Discovered exit to Materials (range 12) 1309 | -10/Mines | Assembled infested the area 1389 | -10/Mines | Core integrity fell below 50% 1451 | -10/Mines | Lost 4 parts (1n2u1w) 1566 | -10/Mines | Discovered exit to Materials (range 15) 1602 | -10/Mines | Core integrity fell below 20% 1938 | -10/Mines | Build established: Scavenger-Mutant 1954 | -10/Mines | Deemed a non-threat by the Exiles lab entrance 1954 | -10/Mines | Discovered new exit (range 5) 1962 | -10/Mines | Entered Exiles 1992 | -10/Exiles | Met 8R-AWN 2013 | -10/Exiles | Met EX-HEX 2058 | -10/Exiles | Met EX-BIN 2071 | -10/Exiles | Aligned with FarCom system 2073 | -10/Exiles | Given EX-Vault access code 2100 | -10/Exiles | Opened EX-Vault 2109 | -10/Exiles | Found Cloak of Protection 2152 | -10/Exiles | Warned to stay clear of 0b10 Research branches 2203 | -10/Exiles | Met EX-DEC 2213 | -10/Exiles | Learned location of Zion (-6) 2274 | -10/Exiles | Discovered new exit (range 14) 2288 | -10/Exiles | Left Exiles lab with Cloak of Protection 2288 | -10/Exiles | Entered Mines 2300 | -9/Mines | Met a Derelict bent on vengeance 2349 | -9/Mines | Received a Rocket Launcher from a helpful Derelict 2476 | -9/Mines | Discovered new exit (range 7) 2479 | -9/Mines | Received a Mining Laser from a helpful Derelict 2485 | -9/Mines | Entered Materials 2485 | -8/Materials | Accompanied by 1 ally 2485 | -8/Materials | Evolved 4 slots: Propulsion x3, Utility x1 2572 | -8/Materials | Garrison activated, responded to threat 3197 | -8/Materials | Lost 3 parts (3n) 3306 | -8/Materials | Lost 3 parts (1p1n1w) 3320 | -8/Materials | Core integrity fell below 50% 3645 | -8/Materials | Build established: Mutant 3771 | -8/Materials | Garrison activated, responded to threat 3818 | -8/Materials | Lost 3 parts (1p1n1w) 3897 | -8/Materials | System corruption reached 10% 3898 | -8/Materials | Core integrity fell below 20% 3982 | -8/Materials | Self-destructed Last Messages --------------- 03889_ Pulse Rifle destroyed. 03889_ U-05 Engineer lays Concrete. 03890_ Lgt. Assault Rifle destroyed. 03890_ U-05 Engineer lays Concrete. 03892_ R-06 Scavenger collects Transport Network Coupler. 03892_ U-05 Engineer lays Concrete. 03893_ M-28 Smith repairs Com. Wheel. 03893_ U-05 Engineer lays Concrete. 03895_ M-28 Smith repairs Lgt. Ion Engine. 03895_ U-05 Engineer lays Concrete. 03896_ Acquired Corrupted Wheel. 03896_ Integrated Corrupted Wheel (+9). 03896_ U-05 Engineer lays Concrete. 03897_ R-06 Scavenger destroyed. 03911_ Acquired 39 matter. 03952_ System corrupted: Matter fused (-8). 03968_ Acquired Visual Processing Unit. 03973_ PZO6S#VV DO%ODVRY8Y5UU6O1YR% 03975_ W-25 Informer sends out distress signal. 03978_ T-07 Excavator is excavating. Map ----- +----------------------------------------------------+ | % % #% """" """"???????????????????????? | | % += """" ""?????????????????????????? | | # """" ""?????????????????????????? | | % ######## ##= ?????????????????????????? | | ##*# # ###########?????????????????????????? | | #### "# #???????????????????????????????????? | | #??# T# #???????????????????????????????????? | | #### "# #???????????????????????????????????? | | + # #???????????????????????????????????? | | #### # #???????????????????????????????????? | | #??#= # #???????????????????????????????????? | | #+##### # #???????????????????????????????????? | | ###### #???????????????????????????????????? | | #??###+#######?????????????????????????????? | | #??# g #?????????????????????????????? | | " """ #??# #######???????????????????????? | | " """ #??# # ###+####### #?????????? | | " """ #??# w # ?????????? | | #??# " "" + ?????????? | | = #??# "R"" # ?????????? | | #####????# """ # ##########+#????????????? | | ?????????# ## ########?????????????????? | | ?????????####### #### # w #?????????????????? | | ???????????????#### # # #?????????????????? | | ??????????????????# ; #?????????????????? | | ??????????????????# # #@ #?????????????????? | | ??????????????????### # #?????????????????? | | ????????????????????# # #?????????????????? | | ????????????????????# ########?????????????????? | | ????????????????????# #????????????????????????? | | ????????????????????# #????????????????????????? | | ????????????????????+ #????????????????????????? | | ????????????????????#w #????????????????????????? | | ????????????????????# #????????????????????????? | | ????????????????????#gg #????????????????????????? | | ????????????????????# ?????????????????????????? | | ????????????????????#g ?????Y???????????????????? | | ????????????????????# ?????????????????????????? | | ????????????????????+ ?????????????????????????? | | ????????????????????# ?????????????????????????? | | ????????????????????? ?????????????????????????? | | ?????????????????????????????????????????????????? | | ?????????????????????????????????????????????????? | | ?????????????????????????????????????????????????? | | ?????????????????????????????????????????????????? | | ?????????????????????????????????????????????????? | | ?????????????????????????????????????????????????? | | ?????????????????????????????????????????????????? | | ?????????????????????????????????????????????????? | | ?????????????????????????????????????????????????? | +----------------------------------------------------+ Best States ------------- Heat Dissipation 45 Energy Generation 18 Energy Capacity 275 Matter Stores 300 Matter Capacity 300 Sight Range 18 Terrain Scan Density 10 Cloak Strength 5 Armor Coverage 150 Weapon Shielding 33 Evasion (%) 55 Targeting Accuracy 5 Item Schematics ----------------- None Robot Schematics ------------------ None Fabricated ------------ Nothing Alien Tech Used ----------------- None Achievements -------------- None Challenges ------------ None Game ------ Seed GatlingPiercingScanner Manual? 0 Play Time 00:33:03 Cumulative 63.9 hours Start 2024.08.29 @ 22:36:28 End 2024.08.30 @ 17:46:40 Sessions 3 Manual Loads 0 Difficulty Rogue Special Mode None Game No. 115 Rogue 115 Adventurer 0 Explorer 0 Win Type - Total 0 Types 0/0/0/0/0/0/0/0/0 Lore% 23 Gallery% 44 Achievement% 36 Wizard Run 0 Options --------- Layout 0 ASCII 0 Keyboard 0 Movement Numpad Keybinds 0 Fullscreen 2 Font 18/SmallcapsGlow Map View 76x50 Zoom Use 0% Tactical HUD 1 Map Filters NONE Filters NONE Steam 1 RUN: 233bbaa1-653a-491c-80d4-f772db5fb0c7